[Event "*** SCC Grand Prix: Titled Tuesday Blitz"]
[Site "Chess.com"]
[Date "2020.10.13"]
[Round "5"]
[White "pfalcon1949"]
[Black "natelleka"]
[Result "0-1"]
[WhiteElo "1934"]
[BlackElo "2178"]
[TimeControl "180+1"]
[EndTime "10:58:35 PDT"]
[Termination "natelleka won by checkmate"]

1. c4 {[%clk 0:02:57.5]} 1... e5 {[%clk 0:02:59.4]} 2. Nc3 {[%clk 0:02:56]} 2...
Nf6 {[%clk 0:02:58.2]} 3. g3 {[%clk 0:02:53.3]} 3... d5 {[%clk 0:02:58.1]} 4.
cxd5 {[%clk 0:02:52.8]} 4... Nxd5 {[%clk 0:02:58.8]} 5. Bg2 {[%clk 0:02:52.7]}
5... Nb6 {[%clk 0:02:58.7]} 6. e3 {[%clk 0:02:50.2]} 6... Nc6 {[%clk 0:02:58.5]}
7. Nge2 {[%clk 0:02:50.3]} 7... Be7 {[%clk 0:02:59]} 8. O-O {[%clk 0:02:50.1]}
8... O-O {[%clk 0:02:56.3]} 9. f4 {[%clk 0:02:50.2]} 9... h6 {[%clk 0:02:04.4]}
10. fxe5 {[%clk 0:02:41.1]} 10... Nxe5 {[%clk 0:02:04]} 11. d4 {[%clk
0:02:41.7]} 11... Nec4 {[%clk 0:02:02.4]} 12. b3 {[%clk 0:02:41.7]} 12... Nd6
{[%clk 0:01:59]} 13. Bb2 {[%clk 0:02:41.9]} 13... Bg4 {[%clk 0:01:46.3]} 14. Qe1
{[%clk 0:02:33.6]} 14... Re8 {[%clk 0:01:44.7]} 15. Qf2 {[%clk 0:02:33]} 15...
Bg5 {[%clk 0:01:43.4]} 16. e4 {[%clk 0:02:26.6]} 16... c6 {[%clk 0:01:20.7]} 17.
e5 {[%clk 0:02:23.8]} 17... Qd7 {[%clk 0:01:10.4]} 18. exd6 {[%clk 0:02:19.9]}
18... Be3 {[%clk 0:01:10.3]} 19. Nf4 {[%clk 0:02:08.6]} 19... Bxf2+ {[%clk
0:01:10]} 20. Rxf2 {[%clk 0:02:09.3]} 20... Qxd6 {[%clk 0:01:07.9]} 21. Raf1
{[%clk 0:02:09.6]} 21... Re7 {[%clk 0:01:04.4]} 22. Ne4 {[%clk 0:02:03.6]} 22...
Qc7 {[%clk 0:00:53.6]} 23. h3 {[%clk 0:02:02.7]} 23... Bf5 {[%clk 0:00:49.8]}
24. Nc5 {[%clk 0:02:02.7]} 24... Rae8 {[%clk 0:00:43.1]} 25. g4 {[%clk
0:01:57.6]} 25... Bc8 {[%clk 0:00:39.9]} 26. Nh5 {[%clk 0:01:50.3]} 26... Re1
{[%clk 0:00:36.8]} 27. Bc3 {[%clk 0:01:23.1]} 27... Rxf1+ {[%clk 0:00:35.5]} 28.
Rxf1 {[%clk 0:01:23.3]} 28... Nd5 {[%clk 0:00:33.8]} 29. Ba1 {[%clk 0:01:21.2]}
29... Ne3 {[%clk 0:00:31.1]} 30. Rf2 {[%clk 0:01:21]} 30... Nxg2 {[%clk
0:00:30.9]} 31. Kxg2 {[%clk 0:01:20.7]} 31... b6 {[%clk 0:00:27.8]} 32. Nd3
{[%clk 0:01:16.7]} 32... Qd6 {[%clk 0:00:18]} 33. Ne5 {[%clk 0:01:15.5]} 33...
Qd5+ {[%clk 0:00:17.2]} 34. Kh2 {[%clk 0:01:14]} 34... f6 {[%clk 0:00:17.2]} 35.
Ng6 {[%clk 0:01:09.1]} 35... Re3 {[%clk 0:00:16.7]} 36. Ng3 {[%clk 0:01:04.1]}
36... Re1 {[%clk 0:00:14.8]} 37. h4 {[%clk 0:00:56.5]} 37... Rxa1 {[%clk
0:00:13]} 38. Ne7+ {[%clk 0:00:54.7]} 38... Kf7 {[%clk 0:00:12.5]} 39. Nxd5
{[%clk 0:00:55.6]} 39... cxd5 {[%clk 0:00:12.9]} 40. g5 {[%clk 0:00:56.2]} 40...
hxg5 {[%clk 0:00:12.6]} 41. hxg5 {[%clk 0:00:56.7]} 41... Kg6 {[%clk 0:00:12.9]}
42. gxf6 {[%clk 0:00:57.2]} 42... gxf6 {[%clk 0:00:13.2]} 43. Ne2 {[%clk
0:00:56.9]} 43... Bg4 {[%clk 0:00:12.2]} 44. Nf4+ {[%clk 0:00:55.6]} 44... Kf5
{[%clk 0:00:10.5]} 45. Nxd5+ {[%clk 0:00:56.5]} 45... Ke4 {[%clk 0:00:10.9]} 46.
Nxf6+ {[%clk 0:00:56.1]} 46... Kxd4 {[%clk 0:00:10.7]} 47. Nxg4 {[%clk
0:00:55.9]} 47... Kc3 {[%clk 0:00:10.8]} 48. Kg3 {[%clk 0:00:54.9]} 48... a5
{[%clk 0:00:10.4]} 49. Kh4 {[%clk 0:00:54.6]} 49... b5 {[%clk 0:00:10.7]} 50.
Kg5 {[%clk 0:00:54.7]} 50... a4 {[%clk 0:00:10.6]} 51. Rg2 {[%clk 0:00:55.3]}
51... axb3 {[%clk 0:00:09.9]} 52. axb3 {[%clk 0:00:56.2]} 52... Kxb3 {[%clk
0:00:10.1]} 53. Ne5 {[%clk 0:00:56.4]} 53... b4 {[%clk 0:00:09.8]} 54. Nd3
{[%clk 0:00:56.3]} 54... Ra5+ {[%clk 0:00:09.5]} 55. Kf4 {[%clk 0:00:53.1]}
55... Kc3 {[%clk 0:00:09.9]} 56. Ke3 {[%clk 0:00:52.2]} 56... b3 {[%clk
0:00:08.5]} 57. Nc1 {[%clk 0:00:49.3]} 57... Re5+ {[%clk 0:00:07.8]} 58. Kf4
{[%clk 0:00:48.6]} 58... b2 {[%clk 0:00:06.7]} 59. Na2+ {[%clk 0:00:44]} 59...
Kb3 {[%clk 0:00:06.2]} 60. Kxe5 {[%clk 0:00:42.3]} 60... b1=Q {[%clk 0:00:05]}
61. Rg3+ {[%clk 0:00:25.9]} 61... Kxa2 {[%clk 0:00:04.5]} 62. Rg4 {[%clk
0:00:26.3]} 62... Qe1+ {[%clk 0:00:04.1]} 63. Re4 {[%clk 0:00:26.6]} 63... Qa5+
{[%clk 0:00:04]} 64. Kd4 {[%clk 0:00:26.7]} 64... Qb4+ {[%clk 0:00:04]} 65. Ke3
{[%clk 0:00:27]} 65... Qc3+ {[%clk 0:00:04.5]} 66. Kf4 {[%clk 0:00:27.3]} 66...
Kb2 {[%clk 0:00:04.9]} 67. Re3 {[%clk 0:00:27.2]} 67... Qf6+ {[%clk 0:00:04.9]}
68. Ke4 {[%clk 0:00:27.2]} 68... Kc2 {[%clk 0:00:05.1]} 69. Rf3 {[%clk
0:00:23.5]} 69... Qe6+ {[%clk 0:00:04.9]} 70. Kd4 {[%clk 0:00:22.2]} 70... Kd2
{[%clk 0:00:04.7]} 71. Rd3+ {[%clk 0:00:21.7]} 71... Ke2 {[%clk 0:00:04.7]} 72.
Rc3 {[%clk 0:00:21.3]} 72... Qf6+ {[%clk 0:00:04.5]} 73. Kc4 {[%clk 0:00:21.2]}
73... Kd2 {[%clk 0:00:04.8]} 74. Rd3+ {[%clk 0:00:21]} 74... Kc2 {[%clk
0:00:05.2]} 75. Rd4 {[%clk 0:00:19.9]} 75... Qc6+ {[%clk 0:00:05.2]} 76. Kb4
{[%clk 0:00:19.2]} 76... Kb2 {[%clk 0:00:05]} 77. Rc4 {[%clk 0:00:19]} 77...
Qb6+ {[%clk 0:00:05.1]} 78. Ka4 {[%clk 0:00:19.4]} 78... Qb3+ {[%clk 0:00:05.3]}
79. Ka5 {[%clk 0:00:14.8]} 79... Qxc4 {[%clk 0:00:05.6]} 80. Kb6 {[%clk
0:00:13.4]} 80... Qd5 {[%clk 0:00:05.9]} 81. Ka6 {[%clk 0:00:12]} 81... Qc5
{[%clk 0:00:06]} 82. Kb7 {[%clk 0:00:11.6]} 82... Qd6 {[%clk 0:00:06.2]} 83. Ka7
{[%clk 0:00:11.2]} 83... Qc6 {[%clk 0:00:06.2]} 84. Kb8 {[%clk 0:00:10.6]} 84...
Kb3 {[%clk 0:00:06.7]} 85. Ka7 {[%clk 0:00:10.8]} 85... Kb4 {[%clk 0:00:07]} 86.
Kb8 {[%clk 0:00:11.7]} 86... Kb5 {[%clk 0:00:07.2]} 87. Ka7 {[%clk 0:00:12.6]}
87... Qa6+ {[%clk 0:00:07.4]} 88. Kb8 {[%clk 0:00:13.5]} 88... Qb6+ {[%clk
0:00:07.4]} 89. Kc8 {[%clk 0:00:13.3]} 89... Qa6+ {[%clk 0:00:06.2]} 90. Kd7
{[%clk 0:00:13.4]} 90... Kc5 {[%clk 0:00:06]} 91. Ke7 {[%clk 0:00:13.4]} 91...
Kd5 {[%clk 0:00:06.2]} 92. Kf7 {[%clk 0:00:13]} 92... Ke5 {[%clk 0:00:06.7]} 93.
Ke7 {[%clk 0:00:13.9]} 93... Qb7+ {[%clk 0:00:06.8]} 94. Kd8 {[%clk 0:00:14.4]}
94... Kd6 {[%clk 0:00:06.9]} 95. Ke8 {[%clk 0:00:13.3]} 95... Qe7# {[%clk
0:00:07.2]} 0-1

[Event "*** SCC Grand Prix: Titled Tuesday Blitz"]
[Site "Chess.com"]
[Date "2020.10.13"]
[Round "5"]
[White "GigaQuparadze"]
[Black "TimofeevAr"]
[Result "0-1"]
[WhiteElo "2957"]
[BlackElo "2820"]
[TimeControl "180+1"]
[EndTime "10:59:04 PDT"]
[Termination "TimofeevAr won by resignation"]

1. e4 {[%clk 0:03:00.9]} 1... e5 {[%clk 0:02:59.6]} 2. Nf3 {[%clk 0:03:00.5]}
2... Nf6 {[%clk 0:02:59.2]} 3. Nxe5 {[%clk 0:02:57.5]} 3... d6 {[%clk
0:02:58.9]} 4. Nf3 {[%clk 0:02:57.5]} 4... Nxe4 {[%clk 0:02:58.9]} 5. d4 {[%clk
0:02:58]} 5... Be7 {[%clk 0:02:55.5]} 6. Bd3 {[%clk 0:02:50.6]} 6... Nf6 {[%clk
0:02:55.1]} 7. O-O {[%clk 0:02:49.7]} 7... O-O {[%clk 0:02:54.9]} 8. Re1 {[%clk
0:02:48.4]} 8... Bg4 {[%clk 0:02:52]} 9. h3 {[%clk 0:02:45.9]} 9... Bh5 {[%clk
0:02:51.1]} 10. Nbd2 {[%clk 0:02:46]} 10... Nc6 {[%clk 0:02:49.1]} 11. c3 {[%clk
0:02:44.4]} 11... Re8 {[%clk 0:02:46.7]} 12. Nf1 {[%clk 0:02:43.8]} 12... Bf8
{[%clk 0:02:42.5]} 13. Rxe8 {[%clk 0:02:39.4]} 13... Qxe8 {[%clk 0:02:41.1]} 14.
Bg5 {[%clk 0:02:39.1]} 14... Ne4 {[%clk 0:02:34.4]} 15. Bf4 {[%clk 0:02:26.8]}
15... Nf6 {[%clk 0:02:26.8]} 16. Ng3 {[%clk 0:02:24.8]} 16... Bg6 {[%clk
0:02:26.9]} 17. Bg5 {[%clk 0:02:21.7]} 17... Be7 {[%clk 0:02:09.2]} 18. Nf5
{[%clk 0:02:18.8]} 18... Bxf5 {[%clk 0:02:07.5]} 19. Bxf5 {[%clk 0:02:19.7]}
19... h6 {[%clk 0:02:07.6]} 20. Bd2 {[%clk 0:02:17.9]} 20... Bf8 {[%clk
0:02:04.1]} 21. Qb3 {[%clk 0:02:14.6]} 21... Ne7 {[%clk 0:01:49.9]} 22. Re1
{[%clk 0:02:10.4]} 22... Qc6 {[%clk 0:01:49]} 23. Bd3 {[%clk 0:02:06.3]} 23...
Qb6 {[%clk 0:01:48.8]} 24. Qc2 {[%clk 0:01:59.8]} 24... a5 {[%clk 0:01:47]} 25.
a4 {[%clk 0:01:58.9]} 25... c6 {[%clk 0:01:45.5]} 26. Bf4 {[%clk 0:01:56.6]}
26... Ned5 {[%clk 0:01:36.5]} 27. Bh2 {[%clk 0:01:56.4]} 27... Re8 {[%clk
0:01:32.2]} 28. Rxe8 {[%clk 0:01:55.5]} 28... Nxe8 {[%clk 0:01:32.3]} 29. Nd2
{[%clk 0:01:55.6]} 29... Qd8 {[%clk 0:01:30.6]} 30. Nc4 {[%clk 0:01:54.7]} 30...
Ndf6 {[%clk 0:01:26.6]} 31. Qe2 {[%clk 0:01:53.1]} 31... d5 {[%clk 0:01:25.4]}
32. Ne5 {[%clk 0:01:52.3]} 32... Nd6 {[%clk 0:01:25.5]} 33. Bf4 {[%clk
0:01:45.5]} 33... Qe8 {[%clk 0:01:23.7]} 34. Qf3 {[%clk 0:01:42.1]} 34... Nde4
{[%clk 0:01:18.1]} 35. Be3 {[%clk 0:01:40.5]} 35... Bd6 {[%clk 0:01:15.2]} 36.
Ng4 {[%clk 0:01:40.1]} 36... Nxg4 {[%clk 0:01:07.7]} 37. Qxg4 {[%clk 0:01:39.8]}
37... Nf6 {[%clk 0:01:05.8]} 38. Qf5 {[%clk 0:01:39.8]} 38... Qe6 {[%clk
0:01:04.8]} 39. g3 {[%clk 0:01:36.1]} 39... Kf8 {[%clk 0:01:02]} 40. Kg2 {[%clk
0:01:35.4]} 40... Ke7 {[%clk 0:00:59.9]} 41. Qf3 {[%clk 0:01:35.5]} 41... Ne4
{[%clk 0:00:58.6]} 42. Bxe4 {[%clk 0:01:32.4]} 42... Qxe4 {[%clk 0:00:57.6]} 43.
Qxe4+ {[%clk 0:01:29.5]} 43... dxe4 {[%clk 0:00:57.7]} 44. c4 {[%clk 0:01:29.4]}
44... f5 {[%clk 0:00:52.9]} 45. f3 {[%clk 0:01:26.4]} 45... exf3+ {[%clk
0:00:51.9]} 46. Kxf3 {[%clk 0:01:27.3]} 46... Ke6 {[%clk 0:00:52.3]} 47. h4
{[%clk 0:01:23.9]} 47... h5 {[%clk 0:00:41.6]} 48. b3 {[%clk 0:01:22.5]} 48...
Bb4 {[%clk 0:00:41.3]} 49. Bf4 {[%clk 0:01:22.3]} 49... g6 {[%clk 0:00:39.5]}
50. Ke3 {[%clk 0:01:22.5]} 50... Be1 {[%clk 0:00:28.7]} 51. Ke2 {[%clk
0:01:22.6]} 51... Bc3 {[%clk 0:00:28.5]} 52. Kd3 {[%clk 0:01:21.6]} 52... Be1
{[%clk 0:00:28.5]} 53. Bc7 {[%clk 0:01:19.2]} 53... Kd7 {[%clk 0:00:27.7]} 54.
Bf4 {[%clk 0:01:18]} 54... Ke6 {[%clk 0:00:28]} 55. Ke2 {[%clk 0:01:17.7]} 55...
Bc3 {[%clk 0:00:28.2]} 56. Be3 {[%clk 0:01:18]} 56... Bb4 {[%clk 0:00:25.6]} 57.
Bd2 {[%clk 0:01:11.9]} 57... Bd6 {[%clk 0:00:25.8]} 58. Kf3 {[%clk 0:01:09.4]}
58... Bc7 {[%clk 0:00:26.1]} 59. Bf4 {[%clk 0:01:09.5]} 59... Bd8 {[%clk
0:00:26.3]} 60. Ke2 {[%clk 0:01:09.1]} 60... Be7 {[%clk 0:00:25.8]} 61. Kd3
{[%clk 0:01:09.2]} 61... Bb4 {[%clk 0:00:25]} 62. Bd2 {[%clk 0:01:08.1]} 62...
Bd6 {[%clk 0:00:25.1]} 63. Bf4 {[%clk 0:01:05.3]} 63... Bb4 {[%clk 0:00:25]} 64.
Ke2 {[%clk 0:01:00.9]} 64... Kd7 {[%clk 0:00:22.6]} 65. Be3 {[%clk 0:01:00]}
65... Bd6 {[%clk 0:00:22.3]} 66. Bf4 {[%clk 0:00:59.2]} 66... Bb4 {[%clk
0:00:22.5]} 67. d5 {[%clk 0:00:57.4]} 67... cxd5 {[%clk 0:00:19.3]} 68. cxd5
{[%clk 0:00:57.6]} 68... Bd6 {[%clk 0:00:12.2]} 69. Kd3 {[%clk 0:00:57.7]} 69...
Bc5 {[%clk 0:00:11.7]} 70. Kc4 {[%clk 0:00:57.6]} 70... b6 {[%clk 0:00:12.2]}
71. Kb5 {[%clk 0:00:57]} 71... Bf2 {[%clk 0:00:12.2]} 72. Be5 {[%clk 0:00:53.3]}
72... Be3 {[%clk 0:00:11.5]} 73. Kc4 {[%clk 0:00:52.5]} 73... Bf2 {[%clk
0:00:11.5]} 74. Kc3 {[%clk 0:00:51.6]} 74... Be1+ {[%clk 0:00:11.1]} 75. Kd3
{[%clk 0:00:51.4]} 75... Bf2 {[%clk 0:00:12]} 76. Bf4 {[%clk 0:00:48.7]} 76...
Bc5 {[%clk 0:00:10.6]} 77. Be3 {[%clk 0:00:40.2]} 77... Bd6 {[%clk 0:00:10.8]}
78. Bf4 {[%clk 0:00:37.5]} 78... Bc5 {[%clk 0:00:11]} 79. Kc4 {[%clk 0:00:37.9]}
79... Bf2 {[%clk 0:00:10.7]} 80. b4 {[%clk 0:00:38.3]} 80... axb4 {[%clk
0:00:10.2]} 81. Kxb4 {[%clk 0:00:39.2]} 81... Bg1 {[%clk 0:00:10.4]} 82. Kb5
{[%clk 0:00:39.1]} 82... Bf2 {[%clk 0:00:10.5]} 83. Be5 {[%clk 0:00:39.3]} 83...
Be3 {[%clk 0:00:10.4]} 84. Bb8 {[%clk 0:00:37.1]} 84... Bf2 {[%clk 0:00:09.9]}
85. Ba7 {[%clk 0:00:36.1]} 85... Bxg3 {[%clk 0:00:10]} 86. Bxb6 {[%clk
0:00:36.2]} 86... f4 {[%clk 0:00:10.2]} 87. Kc4 {[%clk 0:00:32.8]} 87... f3
{[%clk 0:00:09.2]} 88. Kd3 {[%clk 0:00:32.7]} 88... Bxh4 {[%clk 0:00:08.9]} 89.
a5 {[%clk 0:00:31.1]} 89... Kc8 {[%clk 0:00:09.1]} 90. a6 {[%clk 0:00:31]} 90...
g5 {[%clk 0:00:05.6]} 91. d6 {[%clk 0:00:30.1]} 91... g4 {[%clk 0:00:05.6]} 92.
d7+ {[%clk 0:00:29.1]} 92... Kb8 {[%clk 0:00:05.9]} 93. Ke4 {[%clk 0:00:28.3]}
93... Ka8 {[%clk 0:00:04.5]} 94. Bf2 {[%clk 0:00:27]} 94... Be7 {[%clk
0:00:04.4]} 95. Kf5 {[%clk 0:00:26.3]} 95... Bd8 {[%clk 0:00:04.6]} 96. Kf4
{[%clk 0:00:23]} 96... Be7 {[%clk 0:00:04.4]} 97. Kg3 {[%clk 0:00:22.4]} 97...
Bd8 {[%clk 0:00:04.7]} 98. Kf4 {[%clk 0:00:20]} 98... Be7 {[%clk 0:00:04.9]} 99.
Ke4 {[%clk 0:00:19.6]} 99... Bd8 {[%clk 0:00:05.1]} 100. Bg3 {[%clk 0:00:19.1]}
100... h4 {[%clk 0:00:04.4]} 101. Bf2 {[%clk 0:00:17.7]} 101... h3 {[%clk
0:00:04.7]} 102. Bg3 {[%clk 0:00:11.6]} 102... f2 {[%clk 0:00:05.1]} 103. Bxf2
{[%clk 0:00:11.2]} 103... h2 {[%clk 0:00:05.5]} 0-1

[Event "*** SCC Grand Prix: Titled Tuesday Blitz"]
[Site "Chess.com"]
[Date "2020.10.13"]
[Round "5"]
[White "chessplayer9919"]
[Black "Alexander_Moskalenko"]
[Result "1/2-1/2"]
[WhiteElo "2606"]
[BlackElo "2812"]
[TimeControl "180+1"]
[EndTime "10:59:36 PDT"]
[Termination "Game drawn - insufficient material"]

1. d4 {[%clk 0:03:00.9]} 1... d5 {[%clk 0:02:58.8]} 2. c4 {[%clk 0:03:00.8]}
2... c6 {[%clk 0:02:59.3]} 3. Nf3 {[%clk 0:03:00.3]} 3... Nf6 {[%clk 0:02:56.9]}
4. Nc3 {[%clk 0:03:00]} 4... e6 {[%clk 0:02:56.9]} 5. cxd5 {[%clk 0:02:47.8]}
5... exd5 {[%clk 0:02:56.3]} 6. Bf4 {[%clk 0:02:47.9]} 6... Bf5 {[%clk
0:02:53.8]} 7. e3 {[%clk 0:02:48.1]} 7... Nbd7 {[%clk 0:02:50.5]} 8. Bd3 {[%clk
0:02:48]} 8... Bxd3 {[%clk 0:02:48.8]} 9. Qxd3 {[%clk 0:02:48.9]} 9... Be7
{[%clk 0:02:47.5]} 10. O-O {[%clk 0:02:48.9]} 10... O-O {[%clk 0:02:48.4]} 11.
Ne5 {[%clk 0:02:49.1]} 11... a5 {[%clk 0:02:42.5]} 12. Na4 {[%clk 0:02:28.6]}
12... Re8 {[%clk 0:02:35.2]} 13. h3 {[%clk 0:02:20.6]} 13... Nxe5 {[%clk
0:02:31.4]} 14. Bxe5 {[%clk 0:02:17.6]} 14... Nd7 {[%clk 0:02:32.3]} 15. Bh2
{[%clk 0:02:14]} 15... Nb6 {[%clk 0:02:32.9]} 16. Nc5 {[%clk 0:01:53.3]} 16...
Bxc5 {[%clk 0:02:31.4]} 17. dxc5 {[%clk 0:01:54.2]} 17... Nd7 {[%clk 0:02:32.2]}
18. Bd6 {[%clk 0:01:47]} 18... Qf6 {[%clk 0:02:32]} 19. Qc3 {[%clk 0:01:43]}
19... Qxc3 {[%clk 0:02:24.1]} 20. bxc3 {[%clk 0:01:43.9]} 20... Re6 {[%clk
0:02:24.8]} 21. c4 {[%clk 0:01:04]} 21... dxc4 {[%clk 0:02:22.5]} 22. Rfd1
{[%clk 0:01:02.5]} 22... b5 {[%clk 0:01:59.4]} 23. cxb6 {[%clk 0:01:00.9]} 23...
Nxb6 {[%clk 0:02:00]} 24. Rac1 {[%clk 0:00:56]} 24... h5 {[%clk 0:01:58.3]} 25.
Bc5 {[%clk 0:00:52.8]} 25... Na4 {[%clk 0:01:57.6]} 26. Bd4 {[%clk 0:00:49]}
26... c5 {[%clk 0:01:52.2]} 27. Rxc4 {[%clk 0:00:36.9]} 27... cxd4 {[%clk
0:01:52]} 28. Rxa4 {[%clk 0:00:37]} 28... dxe3 {[%clk 0:01:52.6]} 29. fxe3
{[%clk 0:00:37.4]} 29... Rxe3 {[%clk 0:01:53.5]} 30. Rd5 {[%clk 0:00:37.8]}
30... Re1+ {[%clk 0:01:42.3]} 31. Kh2 {[%clk 0:00:28.6]} 31... Rae8 {[%clk
0:01:33]} 32. Rxh5 {[%clk 0:00:26.4]} 32... g6 {[%clk 0:01:15.4]} 33. Rhxa5
{[%clk 0:00:25.6]} 33... R8e2 {[%clk 0:01:16]} 34. Rg5 {[%clk 0:00:25.6]} 34...
Ra1 {[%clk 0:01:15.8]} 35. Rga5 {[%clk 0:00:17.4]} 35... Kg7 {[%clk 0:01:12.7]}
36. Ra7 {[%clk 0:00:16.8]} 36... Rf1 {[%clk 0:01:13.1]} 37. Rg4 {[%clk
0:00:15.2]} 37... Rf5 {[%clk 0:01:11.3]} 38. a4 {[%clk 0:00:14.4]} 38... Ra2
{[%clk 0:01:11.5]} 39. Rb4 {[%clk 0:00:11.1]} 39... Rff2 {[%clk 0:01:09.5]} 40.
Rg4 {[%clk 0:00:10.6]} 40... Ra1 {[%clk 0:01:10.1]} 41. a5 {[%clk 0:00:06.8]}
41... Rff1 {[%clk 0:01:07.1]} 42. a6 {[%clk 0:00:04.5]} 42... Ra3 {[%clk
0:00:55.7]} 43. Rb4 {[%clk 0:00:04]} 43... Ra2 {[%clk 0:00:52.5]} 44. Rg4 {[%clk
0:00:03.9]} 44... Rff2 {[%clk 0:00:52.7]} 45. Rg3 {[%clk 0:00:03.7]} 45... Kh6
{[%clk 0:00:51.6]} 46. Ra8 {[%clk 0:00:03.6]} 46... f5 {[%clk 0:00:50.3]} 47. a7
{[%clk 0:00:03.8]} 47... Kg7 {[%clk 0:00:50.3]} 48. Rxg6+ {[%clk 0:00:03.3]}
48... Kxg6 {[%clk 0:00:48.2]} 49. Rg8+ {[%clk 0:00:03.8]} 49... Kf6 {[%clk
0:00:47.7]} 50. a8=Q {[%clk 0:00:03.9]} 50... Rxa8 {[%clk 0:00:46.9]} 51. Rxa8
{[%clk 0:00:03.3]} 51... f4 {[%clk 0:00:45.2]} 52. Rf8+ {[%clk 0:00:02.6]} 52...
Ke5 {[%clk 0:00:44.5]} 53. h4 {[%clk 0:00:02.7]} 53... Ra2 {[%clk 0:00:44.3]}
54. Kh3 {[%clk 0:00:02.8]} 54... Ra3+ {[%clk 0:00:45]} 55. Kh2 {[%clk
0:00:03.2]} 55... Ke4 {[%clk 0:00:43.9]} 56. h5 {[%clk 0:00:03]} 56... Ra5
{[%clk 0:00:44.6]} 57. Rh8 {[%clk 0:00:02.9]} 57... Kf5 {[%clk 0:00:42.8]} 58.
h6 {[%clk 0:00:03.3]} 58... Kg6 {[%clk 0:00:40.7]} 59. Rf8 {[%clk 0:00:03.3]}
59... Rh5+ {[%clk 0:00:38.4]} 60. Kg1 {[%clk 0:00:03]} 60... Kg5 {[%clk
0:00:38.8]} 61. Kf2 {[%clk 0:00:01.6]} 61... Rxh6 {[%clk 0:00:38.5]} 62. Rg8+
{[%clk 0:00:02]} 62... Kf5 {[%clk 0:00:36.8]} 63. Ra8 {[%clk 0:00:02.5]} 63...
Ke5 {[%clk 0:00:37.5]} 64. Ra5+ {[%clk 0:00:02.5]} 64... Ke4 {[%clk 0:00:37.7]}
65. Ra4+ {[%clk 0:00:02.9]} 65... Kf5 {[%clk 0:00:38.3]} 66. Kf3 {[%clk
0:00:03]} 66... Rb6 {[%clk 0:00:36.6]} 67. Rxf4+ {[%clk 0:00:02.5]} 67... Kg5
{[%clk 0:00:37.1]} 68. Rg4+ {[%clk 0:00:02.9]} 68... Kh5 {[%clk 0:00:36.7]} 69.
Rf4 {[%clk 0:00:03.3]} 69... Rb3+ {[%clk 0:00:36.6]} 70. Kf2 {[%clk 0:00:03.4]}
70... Kg5 {[%clk 0:00:37.1]} 71. g3 {[%clk 0:00:04]} 71... Rb2+ {[%clk
0:00:37.3]} 72. Kf3 {[%clk 0:00:04.1]} 72... Rb3+ {[%clk 0:00:37.9]} 73. Kg2
{[%clk 0:00:04.7]} 73... Rb1 {[%clk 0:00:38.8]} 74. Kh3 {[%clk 0:00:04.7]} 74...
Rh1+ {[%clk 0:00:39.3]} 75. Kg2 {[%clk 0:00:05.1]} 75... Ra1 {[%clk 0:00:40.2]}
76. Rb4 {[%clk 0:00:05.2]} 76... Ra5 {[%clk 0:00:38.2]} 77. Kh3 {[%clk 0:00:05]}
77... Rc5 {[%clk 0:00:38.8]} 78. Rh4 {[%clk 0:00:04.2]} 78... Rc1 {[%clk
0:00:38]} 79. Ra4 {[%clk 0:00:03.8]} 79... Rc5 {[%clk 0:00:36.3]} 80. Ra8 {[%clk
0:00:03.3]} 80... Rc4 {[%clk 0:00:35.2]} 81. Rg8+ {[%clk 0:00:03.5]} 81... Kh5
{[%clk 0:00:35.3]} 82. g4+ {[%clk 0:00:03.3]} 82... Kh6 {[%clk 0:00:35.8]} 83.
Kh4 {[%clk 0:00:03.8]} 83... Rc1 {[%clk 0:00:35.1]} 84. g5+ {[%clk 0:00:03.4]}
84... Kh7 {[%clk 0:00:35.3]} 85. Ra8 {[%clk 0:00:03.9]} 85... Rh1+ {[%clk
0:00:35.7]} 86. Kg4 {[%clk 0:00:04]} 86... Rg1+ {[%clk 0:00:36.3]} 87. Kf4
{[%clk 0:00:04.3]} 87... Rf1+ {[%clk 0:00:36.4]} 88. Ke5 {[%clk 0:00:04.7]}
88... Kg6 {[%clk 0:00:36.3]} 89. Rg8+ {[%clk 0:00:04.7]} 89... Kf7 {[%clk
0:00:36]} 90. Ra8 {[%clk 0:00:03.5]} 90... Kg6 {[%clk 0:00:36.4]} 91. Rg8+
{[%clk 0:00:03.2]} 91... Kh5 {[%clk 0:00:35.7]} 92. g6 {[%clk 0:00:03.1]} 92...
Kg5 {[%clk 0:00:35.9]} 93. Ke6 {[%clk 0:00:02.3]} 93... Rf2 {[%clk 0:00:33.3]}
94. Ke7 {[%clk 0:00:02]} 94... Kh6 {[%clk 0:00:31.7]} 95. g7 {[%clk 0:00:01.8]}
95... Kg6 {[%clk 0:00:27.7]} 96. Rf8 {[%clk 0:00:01.7]} 96... Re2+ {[%clk
0:00:28.2]} 97. Kd7 {[%clk 0:00:01.9]} 97... Kxg7 {[%clk 0:00:29.1]} 98. Rf1
{[%clk 0:00:01.9]} 98... Rd2+ {[%clk 0:00:30]} 99. Ke6 {[%clk 0:00:02]} 99...
Re2+ {[%clk 0:00:30.6]} 100. Kf5 {[%clk 0:00:02.5]} 100... Rg2 {[%clk
0:00:31.5]} 101. Rd1 {[%clk 0:00:01.9]} 101... Kh6 {[%clk 0:00:30.1]} 102. Ke4
{[%clk 0:00:02.1]} 102... Kg5 {[%clk 0:00:30.2]} 103. Kd3 {[%clk 0:00:02.7]}
103... Kf4 {[%clk 0:00:28.9]} 104. Rd2 {[%clk 0:00:03.6]} 104... Rg3+ {[%clk
0:00:28.7]} 105. Kc2 {[%clk 0:00:03.9]} 105... Ke4 {[%clk 0:00:29.6]} 106. Re2+
{[%clk 0:00:03.9]} 106... Kd4 {[%clk 0:00:30.2]} 107. Rd2+ {[%clk 0:00:04.8]}
107... Kc4 {[%clk 0:00:30.9]} 108. Re2 {[%clk 0:00:05.3]} 108... Ra3 {[%clk
0:00:30.8]} 109. Kd2 {[%clk 0:00:05.7]} 109... Kd4 {[%clk 0:00:31]} 110. Ke1
{[%clk 0:00:05]} 110... Rf3 {[%clk 0:00:30.2]} 111. Kd2 {[%clk 0:00:05]} 111...
Rf8 {[%clk 0:00:29.1]} 112. Ke1 {[%clk 0:00:05.1]} 112... Kd3 {[%clk 0:00:28.5]}
113. Rd2+ {[%clk 0:00:05.4]} 113... Ke3 {[%clk 0:00:29.1]} 114. Re2+ {[%clk
0:00:06.3]} 114... Kd3 {[%clk 0:00:29.8]} 115. Rd2+ {[%clk 0:00:06.5]} 115...
Kc3 {[%clk 0:00:30.4]} 116. Re2 {[%clk 0:00:07.4]} 116... Rf3 {[%clk 0:00:30]}
117. Rf2 {[%clk 0:00:05.9]} 117... Rh3 {[%clk 0:00:29.5]} 118. Ke2 {[%clk
0:00:06.2]} 118... Kd4 {[%clk 0:00:29.7]} 119. Rf4+ {[%clk 0:00:06.3]} 119...
Ke5 {[%clk 0:00:28.7]} 120. Rf3 {[%clk 0:00:06.7]} 120... Rxf3 {[%clk
0:00:28.1]} 121. Kxf3 {[%clk 0:00:06.6]} 1/2-1/2

[Event "*** SCC Grand Prix: Titled Tuesday Blitz"]
[Site "Chess.com"]
[Date "2020.10.13"]
[Round "6"]
[White "Siemba"]
[Black "barbara25"]
[Result "1-0"]
[WhiteElo "2416"]
[BlackElo "2255"]
[TimeControl "180+1"]
[EndTime "11:01:02 PDT"]
[Termination "Siemba won by resignation"]

1. e4 {[%clk 0:02:59.9]} 1... c5 {[%clk 0:02:59.4]} 2. Nf3 {[%clk 0:02:59.5]}
2... d6 {[%clk 0:02:59.6]} 3. d4 {[%clk 0:02:59.8]} 3... cxd4 {[%clk 0:03:00.5]}
4. e5 {[%clk 0:03:00.2]} 4... dxe5 {[%clk 0:02:59]} 5. c3 {[%clk 0:03:00.1]}
5... dxc3 {[%clk 0:02:58.3]} 6. Qxd8+ {[%clk 0:02:54.3]} 6... Kxd8 {[%clk
0:02:58]} 7. Nxc3 {[%clk 0:02:55.2]} 7... f6 {[%clk 0:02:57.7]} 8. Be3 {[%clk
0:02:49.2]} 8... Ke8 {[%clk 0:02:57.3]} 9. Nd5 {[%clk 0:02:46.5]} 9... Kf7
{[%clk 0:02:55.2]} 10. Nc7 {[%clk 0:02:46.4]} 10... e6 {[%clk 0:02:54.6]} 11.
Nxa8 {[%clk 0:02:45.7]} 11... Bb4+ {[%clk 0:02:54.2]} 12. Bd2 {[%clk 0:02:42.7]}
12... Bd6 {[%clk 0:02:51.9]} 13. Rc1 {[%clk 0:02:42]} 13... Ne7 {[%clk
0:02:51.6]} 14. Nc7 {[%clk 0:02:41.5]} 1-0